[Event "13th Palmanova Festival A 2024"]
[Site "Palmanova"]
[Date "2025.01.03"]
[Round "9.1"]
[White "Lumachi, Gabriele"]
[Black "Martinovici, Ilia"]
[Result "0-1"]
[ECO "A04"]
[WhiteElo "2438"]
[BlackElo "2473"]
[Annotator "TA"]
[PlyCount "84"]
[EventDate "2024.12.27"]
[EventCountry "ITA"]
[SourceTitle "playchess.com"]
[Source "ChessBase"]
[SourceQuality "1"]
[TimeControl "6000+30"]

{[%evp 9,84,0,0,0,0,0,8,3,7,7,0,3,-4,18,16,4,4,0,0,0,-12,-13,-14,-56,-39,-36,-31,-28,-41,-45,-41,-37,-39,-45,-41,-38,-47,-46,-33,-44,-56,-57,-55,-70,-21,-20,-19,-24,-22,-59,-64,-62,-70,-80,-58,-41,-45,-49,-47,-55,-41,-47,-49,-175,-175,-193,-161,-171,-181,-229,-223,-301,-287,-284,-290,-353,-320]} 1. Nf3 {[%emt 0:00:03]} f5 {[%emt 0:08:41]} 2. d3 {[%emt 0:06:18]} d6 {[%emt 0:00:26]} 3. e4 {[%emt 0:00:06]} e5 {[%emt 0:01:37]} 4. Nc3 {[%emt 0:00:06]} Nc6 {[%emt 0:00:05]} 5. Be2 {[%emt 0:12:44]} Nf6 {[%emt 0:02:11]} 6. O-O {[%emt 0:01:33]} Be7 {[%emt 0:04:31]} 7. exf5 {[%emt 0:03:49]} O-O {[%emt 0:04:36]} 8. d4 {[%emt 0:02:59] The position is equal.} Nxd4 {[%emt 0:06:25]} 9. Nxd4 {[%emt 0:01:16]} exd4 {[%emt 0:00:03]} 10. Qxd4 {[%emt 0:03:51]} Bxf5 {[%emt 0:00:43][%cal Oc7c6]} 11. Nd5 {[%emt 0:05:14]} Kh8 {[%emt 0:02:55]} 12. Nxe7 {[%emt 0:03:08]} Qxe7 {[%emt 0:00:10]} 13. Bd3 {[%emt 0:07:19]} c5 {[%emt 0:01:44]} 14. Qc3 {[%emt 0:01:22]} Nd5 {[%emt 0:07:30][%cal Bf6d5,Bd5b4,Bb4c2][%mdl 32]} 15. Qb3 {[%emt 0:03:04]} Bxd3 {[%emt 0:00:52]} 16. Qxd3 {[%emt 0:11:32]} Nb4 {[%emt 0:00:17]} 17. Qd1 {[%emt 0:00:03]} Qe4 $1 {[%emt 0:01:10]} 18. f3 $1 {[%emt 0:12:00]} Qxc2 {[%emt 0:01:40] Hoping for ...Qg6.} 19. a3 $1 {[%emt 0:02:55]} Qxd1 {[%emt 0:02:07]} 20. Rxd1 {[%emt 0:00:05]} Nc2 {[%emt 0:00:05]} 21. Rb1 {[%emt 0:00:46]} Rad8 {[%emt 0:09:56]} 22. Bg5 {[%emt 0:00:05]} Rd7 {[%emt 0:00:07]} 23. Rd2 {[%emt 0:07:11]} Nd4 {[%emt 0:10:25]} 24. Rbd1 {[%emt 0:00:05]} b6 {[%emt 0:03:49]} 25. Be3 {[%emt 0:01:55]} Nf5 {[%emt 0:00:07]} 26. Bf2 {[%emt 0:01:49]} Rf6 {[%emt 0:06:20]} ({Black should try} 26... Kg8 $15) 27. g4 $11 {[%emt 0:01:49]} Nh6 {[%emt 0:02:30]} 28. Kg2 {[%emt 0:01:32]} Nf7 {[%emt 0:03:03]} 29. Re1 {[%emt 0:01:21][%cal Re1e8] [#]} h6 {[%emt 0:00:48]} 30. Rd5 {[%emt 0:04:06]} Ng5 {[%emt 0:01:46]} 31. Re3 {[%emt 0:02:43]} Ne6 {[%emt 0:04:48] ...Nf4+ would now be deadly.} 32. Bg3 {[%emt 0:00:04]} Nc7 $36 {[%emt 0:00:33][%mdl 2048] Black has some pressure.} 33. Rd2 {[%emt 0:00:45]} Kg8 {[%emt 0:01:00]} 34. Red3 {[%emt 0:02:06]} Ne8 {[%emt 0:01:07]} 35. f4 {[%emt 0:04:51]} g6 {[%emt 0:01:09]} 36. g5 {[%emt 0:00:28] [#] This costs White the game.} (36. h3 $15) 36... Rf5 $1 $19 {[%emt 0:05:45]} 37. gxh6 {[%emt 0:01:19]} Kh7 {[%emt 0:01:11]} 38. Rd5 {[%emt 0:02:29]} Kxh6 {[%emt 0:01:14]} 39. Rxf5 {[%emt 0:02:35]} (39. Kf3 $142) 39... gxf5 {[%emt 0:00:09]} 40. Bh4 {[%emt 0:00:24]} d5 {[%emt 0:02:56]} 41. Kf3 {[%emt 0:01:58]} d4 {[%emt 0:00:33]} 42. Rg2 {[%emt 0:00:00]} Nd6 {[%emt 0:00:00] Weighted Error Value: White=0.15 (very precise) /Black=0.04 (flawless) .  Mistake:       	White=2     	Black=1      Inaccurate:     	White=3     	---        OK:         	White=14    	Black=23     Best:        	---       	Black=4      Strong:       	White=2     	Black=1} 0-1

[Event "13th Palmanova Festival A 2024"]
[Site "Palmanova"]
[Date "2025.01.03"]
[Round "9.2"]
[White "Dobrovoljc, Vid"]
[Black "Domalchuk-Jonasson, Aleksandr"]
[Result "1-0"]
[ECO "C50"]
[WhiteElo "2365"]
[BlackElo "2377"]
[Annotator "TA"]
[PlyCount "139"]
[EventDate "2024.12.27"]
[EventCountry "ITA"]
[SourceTitle "playchess.com"]
[Source "ChessBase"]
[SourceQuality "1"]
[TimeControl "6000+30"]

{[%evp 60,139,343,104,95,0,0,0,0,-25,-16,-25,0,0,0,-177,-182,-174,-185,-188,0,0,79,70,73,73,66,66,66,41,39,39,45,35,34,48,54,0,229,237,1020,919,1152,1281,2151,2127,2191,1586,1620,1586,1293,1192,5069,4756,1842,881,29968,29962,29975,29973,29978,29979,29979,29980,29980,29981,29981,29982,29982,29983,29983,29984,29984,29985,29985,29985,29985,29986,29990,29991,29991,29992]} 1. e4 {[%emt 0:04:56]} e5 {[%emt 0:01:51]} 2. Nf3 {[%emt 0:00:43]} Nc6 {[%emt 0:00:09]} 3. Bc4 {[%emt 0:00:14]} Bc5 {[%emt 0:00:14]} 4. d3 {[%emt 0:00:23]} d6 {[%emt 0:00:12]} 5. a4 {[%emt 0:00:13]} h6 {[%emt 0:00:48]} 6. Nc3 {[%emt 0:12:15]} Nge7 {[%emt 0:01:56]} 7. Be3 {[%emt 0:05:36]} Bb6 {[%emt 0:03:25]} 8. h3 {[%emt 0:04:15]} O-O {[%emt 0:00:41]} 9. Nh4 {[%emt 0:18:05]} Be6 {[%emt 0:25:25]} 10. Bxe6 {[%emt 0:02:41]} fxe6 {[%emt 0:00:02]} 11. Qg4 {[%emt 0:06:54]} Rf6 {[%emt 0:02:10]} 12. Ne2 {[%emt 0:03:23]} Kh7 {[%emt 0:02:45]} 13. Ng3 {[%emt 0:02:21]} g6 {[%emt 0:00:11]} 14. Nf3 {[%emt 0:01:25]} Nd4 {[%emt 0:07:45]} 15. Nxd4 {[%emt 0:13:29]} Bxd4 {[%emt 0:00:47]} 16. Bxd4 {[%emt 0:00:28]} exd4 {[%emt 0:00:01]} 17. f4 {[%emt 0:02:35]} e5 {[%emt 0:05:24]} 18. Ne2 {[%emt 0:07:14]} exf4 {[%emt 0:03:16]} 19. Nxf4 {[%emt 0:02:54]} Qc8 {[%emt 0:05:56]} 20. Qg3 {[%emt 0:00:32]} Qd7 {[%emt 0:00:37]} 21. O-O {[%emt 0:06:03]} Raf8 {[%emt 0:01:44]} 22. h4 {[%emt 0:00:17]} a5 {[%emt 0:02:57]} 23. Rf2 {[%emt 0:01:19]} R8f7 {[%emt 0:13:32]} 24. Raf1 {[%emt 0:01:53]} c5 {[%emt 0:00:03]} 25. Kh2 {[%emt 0:06:30]} Kg8 {[%emt 0:04:16]} 26. b3 {[%emt 0:02:33]} Kh7 {[%emt 0:01:17]} 27. Rf3 {[%emt 0:00:36]} Qe8 {[%emt 0:17:00]} 28. Ne6 {[%emt 0:02:35]} Rxf3 {[%emt 0:00:08]} 29. Rxf3 {[%emt 0:00:09]} Nc8 {[%emt 0:00:22]} 30. Qg4 {[%emt 0:01:30]} Nb6 {[%emt 0:05:22]} 31. Nf4 $2 {[%emt 0:00:54]} (31. h5 $1 $18 {is the precise move to win.} Rxf3 32. gxf3) 31... Rf6 $16 {[%emt 0:00:48]} 32. h5 {[%emt 0:00:14]} (32. Kg1 $1 $16) 32... g5 $11 {[%emt 0:00:21]} 33. Ng6 {[%emt 0:00:04]} Nd7 {[%emt 0:01:56]} 34. g3 {[%emt 0:01:41]} Kg7 {[%emt 0:01:13]} 35. Kg2 {[%emt 0:00:23]} (35. Rxf6 Nxf6 36. Qf3 Qf7 37. Kg1) 35... d5 {[%emt 0:02:32]} (35... Rxf3 {simplifies} 36. Qxf3 Qf7 37. Qe2 Qe6) 36. Rf5 $1 {[%emt 0:00:37]} (36. exd5 $2 Qe2+ 37. Kh3 Rxf3 $19) 36... dxe4 {[%emt 0:00:45]} 37. dxe4 $2 {[%emt 0:00:30]} (37. Rd5 $1 $11 Rf7 38. Qxe4 (38. dxe4 $2 Nf6 $19) 38... Qxe4+ 39. dxe4) 37... Qe6 $19 {[%emt 0:00:28]} 38. Qf3 {[%emt 0:00:26]} c4 $1 {[%emt 0:00:34]} 39. Rxf6 {[%emt 0:00:37]} Qxf6 $2 {[%emt 0:00:35]} (39... Nxf6 $19 40. bxc4 (40. e5 $2 Nxh5 41. Qxh5 d3 $19) 40... Qxc4 (40... Qxe4 41. Qxe4 Nxe4 42. Kf3 $17)) 40. Qg4 $1 $11 {[%emt 0:00:17]} (40. bxc4 $2 Qxf3+ 41. Kxf3 Kf6 $19) 40... Qc6 {[%emt 0:00:26]} (40... Qd6 $11 {remains equal.} 41. Nh4 (41. bxc4 Nf6 $11) 41... Kh8) 41. Ne7 $16 {[%emt 0:00:00]} Nf6 {[%emt 0:00:00]} 42. Nxc6 {[%emt 0:00:00]} Nxg4 {[%emt 0:00:00]} 43. Nxd4 {[%emt 0:00:00]} (43. Nxa5 $2 c3 44. b4 (44. Nxb7 $2 d3 $19) 44... Ne3+ 45. Kf3 Nxc2 $19) 43... Kf6 {[%emt 0:00:00]} 44. Kf3 {[%emt 0:00:00]} (44. bxc4 Ne3+ 45. Kf2 Nxc4 $17) 44... Nh2+ {[%emt 0:00:00]} 45. Ke2 {[%emt 0:00:00]} Ke5 {[%emt 0:00:00]} 46. Nf5 {[%emt 0:00:00]} cxb3 {[%emt 0:00:00]} 47. cxb3 {[%emt 0:00:00]} Ng4 {[%emt 0:00:00]} 48. Kd3 {[%emt 0:00:00]} (48. Kf3 $14 Nh2+ 49. Ke2) 48... Nf2+ $2 {[%emt 0:00:00]} (48... b6 $11 {and Black has nothing to worry.}) 49. Kc4 $1 $18 {[%emt 0:00:00]} Nxe4 $2 {[%emt 0:00:00]} (49... Ng4 50. Kb5 Kxe4) 50. Nxh6 $18 {[%emt 0:00:00]} Nxg3 {[%emt 0:00:00]} 51. Ng4+ $1 {[%emt 0:00:00]} Kf5 {[%emt 0:00:00]} 52. h6 $1 {[%emt 0:00:00]} Kg6 {[%emt 0:00:00] [#]} 53. Kb5 $1 {[%emt 0:00:00]} Nf5 {[%emt 0:00:00]} 54. Kxa5 {[%emt 0:00:00]} Nxh6 {[%emt 0:00:00] [#]} 55. Nf2 $1 {[%emt 0:00:00]} (55. Nxh6 $2 Kxh6 56. b4 g4 $19) 55... Nf7 {[%emt 0:00:00]} 56. Kb6 {[%emt 0:00:27]} Nd8 {[%emt 0:00:00]} 57. b4 {[%emt 0:00:10]} (57. a5 $142 Kf5 58. Kc7) 57... Kf7 {[%emt 0:00:00]} 58. Kc7 {[%emt 0:00:57]} Nc6 {[%emt 0:05:31]} 59. b5 {[%emt 0:00:15]} ({Not} 59. Kxb7 Nxb4 60. Kb6 Ke7 $11) 59... Na5 {[%emt 0:00:01]} 60. Kb6 {[%emt 0:00:31]} Nc4+ {[%emt 0:01:45]} 61. Kxb7 {[%emt 0:00:17]} Ke6 {[%emt 0:00:13]} 62. Kc7 {[%emt 0:02:20]} Ne3 {[%emt 0:02:19]} 63. a5 {[%emt 0:02:08]} Nd5+ {[%emt 0:00:04]} 64. Kc6 {[%emt 0:00:53]} Ne7+ {[%emt 0:00:42]} 65. Kb7 {[%emt 0:01:31]} Kd7 {[%emt 0:00:08]} 66. a6 {[%emt 0:00:54]} Nc8 {[%emt 0:00:04]} 67. Ne4 {[%emt 0:00:27]} g4 {[%emt 0:00:07]} 68. a7 {[%emt 0:00:08]} g3 {[%emt 0:00:11]} 69. a8=Q {[%emt 0:00:16]} (69. a8=B g2 70. Nc5+ Ke7 71. Kxc8 g1=Q $19 (71... g1=R $2 {too greedy.} 72. Bc6 $18)) 69... Nd6+ {[%emt 0:00:04]} 70. Nxd6 {[%emt 0:00:08]} 1-0

[Event "13th Palmanova Festival A 2024"]
[Site "Palmanova"]
[Date "2025.01.03"]
[Round "9.4"]
[White "Hovhannisyan, Mher"]
[Black "Knudsen, Simon"]
[Result "1-0"]
[ECO "B22"]
[WhiteElo "2397"]
[BlackElo "2303"]
[Annotator "TA"]
[PlyCount "53"]
[EventDate "2024.12.27"]
[EventCountry "ITA"]
[SourceTitle "playchess.com"]
[Source "ChessBase"]
[SourceQuality "1"]
[TimeControl "6000+30"]

{[%evp 9,53,23,27,27,25,29,33,24,52,37,27,30,43,37,42,39,34,15,66,44,85,40,103,82,95,110,111,53,165,157,193,159,225,122,341,341,367,378,602,633,631,621,598,598,29996,29997]} 1. e4 {[%emt 0:01:10]} c5 {[%emt 0:07:03]} 2. c3 {[%emt 0:00:07]} e5 {[%emt 0:00:32]} 3. Nf3 {[%emt 0:01:47]} Nc6 {[%emt 0:00:08]} 4. Bc4 {[%emt 0:01:25]} Nf6 {[%emt 0:00:10]} 5. d3 {[%emt 0:02:40]} Be7 {[%emt 0:03:06]} 6. O-O {[%emt 0:06:16]} O-O {[%emt 0:06:47]} 7. Re1 {[%emt 0:03:51]} Qc7 {[%emt 0:09:01]} 8. a4 {[%emt 0:08:27]} b6 {[%emt 0:07:17]} 9. Nbd2 {[%emt 0:06:14]} Bb7 {[%emt 0:02:11]} 10. Nf1 {[%emt 0:03:15]} Na5 {[%emt 0:13:11]} 11. Ba2 {[%emt 0:06:25]} d5 {[%emt 0:02:49]} 12. exd5 {[%emt 0:04:44]} Nxd5 {[%emt 0:00:56]} 13. Nxe5 {[%emt 0:02:24]} Rad8 {[%emt 0:01:09]} ({Better is} 13... Bd6 $11 14. Nc4 Nxc4 15. Bxc4 Rae8) 14. Ng3 {[%emt 0:05:03]} Rfe8 {[%emt 0:13:31]} 15. Nc4 {[%emt 0:26:09]} Nc6 {[%emt 0:01:13]} (15... Nxc4 $14 16. Bxc4 Bd6) 16. Nf5 {[%emt 0:02:04]} Nf4 {[%emt 0:09:12]} 17. Qg4 $40 {[%emt 0:04:52][%csl Gf5,LRf4,LRg7][%cal Rg4g7][%mdl 128] White attacks with force. White is more active.} Ng6 {[%emt 0:00:07]} 18. Nxe7+ {[%emt 0:01:34]} (18. Bg5 $16) 18... Rxe7 {[%emt 0:00:22]} (18... Ncxe7 $14 19. Na3 Ne5) 19. Bg5 $18 {[%emt 0:01:39]} Rxe1+ {[%emt 0:08:14]} 20. Rxe1 {[%emt 0:00:02]} Rf8 {[%emt 0:00:35]} (20... Nce7 $16 21. Bxe7 Nxe7) 21. Qg3 {[%emt 0:05:18]} (21. h4 $18) 21... Qd7 $2 {[%emt 0:00:33]} (21... Qxg3 $16 {was worth a try.} 22. hxg3 (22. fxg3 h6 $16) 22... h6) 22. h4 {[%emt 0:02:30] Black is weak on the dark squares} h5 {[%emt 0:01:46]} 23. Qd6 {[%emt 0:05:43]} Qg4 {[%emt 0:02:14]} (23... Bc8 $142 24. Qxg6 fxg6 25. Nxb6+ Qf7 26. Bxf7+ Kxf7) 24. f3 {[%emt 0:00:51]} Qc8 {[%emt 0:00:16] [#]} 25. Nxb6 $1 {[%emt 0:01:27][%mdl 512]} axb6 {[%emt 0:01:38]} 26. Qxg6 {[%emt 0:00:17][%cal Og5h6] White threatens Bh6! and mate.} Qc7 {[%emt 0:00:48]} 27. Bf6 {[%emt 0:01:56] Dodges Ne5} 1-0

[Event "13th Palmanova Festival A 2024"]
[Site "Palmanova"]
[Date "2025.01.03"]
[Round "9.5"]
[White "Kalosha, Zhiulien Oleksii"]
[Black "Cina`, Vittorio"]
[Result "1-0"]
[ECO "C54"]
[WhiteElo "2306"]
[BlackElo "2325"]
[Annotator "TA"]
[PlyCount "113"]
[EventDate "2024.12.27"]
[EventCountry "ITA"]
[SourceTitle "playchess.com"]
[Source "ChessBase"]
[SourceQuality "1"]
[TimeControl "6000+30"]

{[%evp 12,113,17,9,9,12,8,13,14,7,11,-10,-6,-11,0,-35,-24,-8,20,1,43,21,28,26,26,16,17,12,64,59,73,74,87,104,108,106,112,89,95,90,105,47,139,131,180,187,200,42,41,39,32,27,27,8,18,11,19,20,21,12,37,16,66,62,65,10,41,38,64,68,70,68,72,1,156,156,166,171,170,34,15,25,1322,1299,1287,1144,29970,29971,29971,29972,29972,29973,29973,29974,29976,29975,29979,29980,29980,29982,29981,29982,29980,29976]} 1. e4 {[%emt 0:00:08]} e5 {[%emt 0:00:18]} 2. Nf3 {[%emt 0:00:11]} Nc6 {[%emt 0:00:05]} 3. Bc4 {[%emt 0:00:12]} Bc5 {[%emt 0:00:06]} 4. c3 {[%emt 0:00:26]} Nf6 {[%emt 0:00:06]} 5. d3 {[%emt 0:03:40]} d6 {[%emt 0:00:08]} 6. O-O {[%emt 0:00:20]} O-O {[%emt 0:01:11]} 7. Re1 {[%emt 0:00:50]} (7. b4 $5 Bb6 $8 8. a4 $11) 7... a5 {[%emt 0:00:31]} 8. h3 {[%emt 0:00:27]} h6 {[%emt 0:04:22]} 9. Nbd2 {[%emt 0:00:50]} a4 {[%emt 0:00:27] The position is equal.} 10. Nf1 {[%emt 0:01:43]} Ra5 {[%emt 0:05:11]} 11. d4 {[%emt 0:26:20]} Bb6 {[%emt 0:09:16]} 12. dxe5 {[%emt 0:13:50]} Nxe5 {[%emt 0:01:06]} 13. Nxe5 {[%emt 0:00:50]} Rxe5 {[%emt 0:01:38]} 14. Ng3 {[%emt 0:03:48]} Qe8 {[%emt 0:16:10]} 15. Bd3 {[%emt 0:02:16]} a3 {[%emt 0:06:42]} 16. b3 {[%emt 0:02:35]} (16. b4 $5) 16... Qc6 {[%emt 0:08:36]} 17. Qc2 {[%emt 0:03:16]} Rfe8 {[%emt 0:04:47]} 18. Bf4 {[%emt 0:04:42]} (18. Bxa3 d5 19. Bc1 dxe4 $17 (19... Nxe4 20. Bxe4 dxe4 21. Bf4 $15)) 18... R5e7 {[%emt 0:04:09]} 19. Qd2 {[%emt 0:00:30]} Nh7 {[%emt 0:03:21]} (19... h5 $11) 20. Kh2 {[%emt 0:03:25]} Ng5 {[%emt 0:03:35]} 21. Rac1 {[%emt 0:02:18]} Nh7 {[%emt 0:08:22][%cal Bg5h7,Bh7f8,Bf8g6][%mdl 32]} 22. b4 {[%emt 0:12:01]} Nf8 {[%emt 0:05:17]} 23. Qe2 {[%emt 0:01:32] Black must now prevent Bb5.} Qd7 {[%emt 0:02:14]} 24. Nf5 {[%emt 0:08:03]} Re6 {[%emt 0:01:21]} 25. c4 {[%emt 0:05:33] White is much more active.} Ng6 {[%emt 0:04:07]} 26. Bg3 {[%emt 0:00:10]} (26. Bd2 $1 $16) 26... c6 {[%emt 0:02:08]} (26... Ne7 $1 $14 27. Qd2 Nxf5 28. exf5 Rxe1 29. Rxe1 Rd8) 27. Red1 $16 {[%emt 0:02:10]} Bc7 {[%emt 0:01:31]} (27... Ne7 $16 {was necessary.} 28. Nxd6 Rxd6) 28. Bb1 $18 {[%emt 0:04:46]} Qd8 {[%emt 0:03:29]} 29. Qd3 $2 {[%emt 0:02:04]} (29. Qf3 $18) 29... Rxe4 $14 {[%emt 0:02:04]} 30. Nxd6 {[%emt 0:00:52]} Bxd6 {[%emt 0:00:13]} 31. Bxd6 {[%emt 0:01:17]} Re2 {[%emt 0:00:46]} 32. Qxa3 {[%emt 0:01:03]} Rxf2 {[%emt 0:04:39] aiming for ...Ree2.} 33. Bg3 {[%emt 0:00:26][%csl LRd8,LRf2][%cal Od1d8]} Rd2 {[%emt 0:00:44]} 34. Rxd2 {[%emt 0:02:56]} Qxd2 {[%emt 0:00:06]} 35. Qc3 $36 {[%emt 0:00:03][%mdl 2048] White has the initiative.} Qg5 {[%emt 0:01:36]} (35... Qxc3 {simplifies} 36. Rxc3 f5 37. Ra3 Kf7) 36. Re1 {[%emt 0:00:55] Against Re3} Rxe1 {[%emt 0:01:10]} (36... Rd8 $11) 37. Qxe1 {[%emt 0:00:05]} Be6 {[%emt 0:00:08]} 38. Qe2 {[%emt 0:00:34]} ({White should play} 38. b5 $14) 38... h5 {[%emt 0:00:51][%cal Bh6h5,Bh5h4][%mdl 32]} 39. a4 {[%emt 0:01:41]} h4 {[%emt 0:01:42]} 40. Bd6 {[%emt 0:00:06]} Qf6 {[%emt 0:02:13][%cal Oe6h3]} 41. c5 $1 {[%emt 0:00:00]} Bd5 {[%emt 0:00:00]} 42. Be4 {[%emt 0:00:00]} (42. Bc2 $16) 42... Qe6 $2 {[%emt 0:00:00] [#]} (42... Nf4 $11 43. Qe1 Bxe4 44. Qxe4 Ne6) 43. Bf3 $1 $16 {[%emt 0:00:00] A strong pair of Bishops.} Qxe2 {[%emt 0:00:00]} 44. Bxe2 {[%emt 0:00:00]} Nf8 {[%emt 0:00:00]} 45. Bxf8 {[%emt 0:00:00]} (45. b5 $18 {Threatens to win with b6.} cxb5 46. axb5) 45... Kxf8 $18 {[%emt 0:00:00][%mdl 4096] Endgame. KB-KB} 46. Bg4 {[%emt 0:00:00]} Be6 {[%emt 0:00:00][%mdl 8192] This costs Black the game.} (46... Ke7 $11) 47. Bxe6 {[%emt 0:00:00]} fxe6 {[%emt 0:00:00] KP-KP} 48. b5 {[%emt 0:00:00] Threatening mate with bxc6.} cxb5 {[%emt 0:00:00] [#]} 49. c6 $1 {[%emt 0:00:00] White mates.} (49. axb5 Ke7 50. g3 e5 (50... g5 $2 51. gxh4 gxh4 52. Kg2 $18) 51. gxh4 Ke6 $19) 49... bxc6 {[%emt 0:00:00]} 50. a5 {[%emt 0:00:00]} Ke7 {[%emt 0:00:00]} 51. a6 {[%emt 0:00:00]} Kd6 {[%emt 0:00:00]} 52. a7 {[%emt 0:00:00]} Kd5 {[%emt 0:00:00]} 53. a8=Q {[%emt 0:00:00]} (53. a8=B $2 {loses.} b4 54. Bb7 b3 $19) 53... b4 {[%emt 0:00:00]} 54. Qd8+ {[%emt 0:00:00]} Kc4 {[%emt 0:00:00]} 55. Qxh4+ {[%emt 0:00:00]} Kb5 {[%emt 0:00:00]} 56. Kg1 {[%emt 0:00:00]} c5 {[%emt 0:00:00]} 57. Kf2 {[%emt 0:00:00] Weighted Error Value: White=0.17 (very precise) /Black=0.29 (precise) .  Loses game:     	---       	Black=1      Mistake:       	White=5     	Black=5      Inaccurate:     	White=1     	Black=4      OK:         	White=15    	Black=12     Best:        	White=2     	Black=2      Strong:       	White=2     	---} 1-0